fUST/lending_fUST_20260314
["ID","MTS","AMOUNT","RATE_DAILY","PERIOD"]
[408341511,1773461432449,-859.11990399,3.881e-05,10]
[408341517,1773461432505,-399.86526697,3.881e-05,10]
[408341524,1773461432557,-2425.80830328,3.881e-05,10]
[408341626,1773461440991,-845.15949572,3.881e-05,10]
[408341633,1773461443780,-453.0,3.881e-05,10]
[408341634,1773461443791,-17.04703004,3.881e-05,10]
[408341635,1773461443801,-351.98649286,3.95e-05,2]
[408341636,1773461443811,-10000.0,4e-05,2]
[408341637,1773461443821,-500.0,4.114e-05,2]
[408341638,1773461443830,-800.0,4.422e-05,2]
[408341639,1773461443841,-218.901432,4.7e-05,30]
[408341640,1773461443852,-800.0,4.757e-05,2]
[408341641,1773461443861,-500.0,4.87e-05,2]
[408341642,1773461443871,-800.0,5.023e-05,2]
[408341643,1773461443881,-2227.845,5.147e-05,2]
[408341644,1773461443890,-437.0,5.147e-05,2]
[408341645,1773461443900,-734.0,5.147e-05,2]
[408341646,1773461443913,-183.0,5.147e-05,2]
[408341648,1773461443923,-800.0,5.283e-05,2]
[408341650,1773461443933,-415.34406157,5.95e-05,2]
[408341652,1773461443943,-2150.738,6.171e-05,2]
[408341654,1773461443952,-800.0,6.384e-05,2]
[408341655,1773461443961,-186.6626492,6.439e-05,2]
[408341656,1773461443971,-185.76921473,6.604e-05,2]
[408341657,1773461443982,-742.847,6.604e-05,2]
[408341658,1773461443991,-2230.315306,6.719e-05,2]
[408341659,1773461444002,-650.13735275,6.899e-05,2]
[408341660,1773461444012,-500.0,6.899e-05,2]
[408341661,1773461444021,-500.0,6.899e-05,2]
[408341662,1773461444031,-501.17820307,6.899e-05,2]
[408341663,1773461444040,-500.0,6.899e-05,2]
[408341664,1773461444050,-500.0,6.899e-05,2]
[408341665,1773461444060,-500.0,6.899e-05,2]
[408341666,1773461444069,-500.0,6.899e-05,2]
[408341667,1773461444079,-500.0,6.899e-05,2]
[408341668,1773461444089,-500.0,6.899e-05,2]
[408341669,1773461444098,-276.21418473,6.899e-05,2]
[408341670,1773461444108,-500.0,6.899e-05,2]
[408341671,1773461444118,-500.0,6.899e-05,2]
[408341672,1773461444128,-500.0,6.899e-05,2]
[408341673,1773461444138,-500.0,6.899e-05,2]
[408341674,1773461444148,-500.0,6.899e-05,2]
[408341675,1773461444157,-500.0,6.899e-05,2]
[408341676,1773461444167,-500.0,6.899e-05,2]
[408341677,1773461444177,-500.0,6.899e-05,2]
[408341678,1773461444187,-500.0,6.899e-05,2]
[408341679,1773461444197,-500.0,6.899e-05,2]
[408341680,1773461444207,-500.0,6.899e-05,2]
[408341681,1773461444218,-500.0,6.899e-05,2]
[408341682,1773461444228,-521.19695978,6.899e-05,2]
[408341683,1773461444237,-500.0,6.899e-05,2]
[408341684,1773461444247,-500.0,6.899e-05,2]
[408341685,1773461444257,-500.0,6.899e-05,2]
[408341686,1773461444266,-509.5,6.899e-05,2]
[408341687,1773461444277,-500.0,6.899e-05,2]
[408341688,1773461444287,-500.0,6.899e-05,2]
[408341689,1773461444297,-500.0,6.899e-05,2]
[408341690,1773461444307,-220.76652977,6.899e-05,2]
[408341691,1773461444316,-500.0,6.899e-05,2]
[408341692,1773461444326,-500.0,6.899e-05,2]
[408341693,1773461444336,-500.0,6.899e-05,2]
[408341694,1773461444345,-500.0,6.899e-05,2]
[408341695,1773461444355,-500.0,6.899e-05,2]
[408341696,1773461444364,-500.0,6.899e-05,2]
[408341697,1773461444374,-649.12193462,6.904e-05,2]
[408341698,1773461444385,-819.34193531,6.904e-05,2]
[408341699,1773461444394,-1153.99455043,6.904e-05,2]
[408341700,1773461444405,-1803.11648505,6.904e-05,2]
[408341701,1773461444414,-1456.607885,6.904e-05,2]
[408341702,1773461444424,-2596.48773848,6.904e-05,2]
[408341703,1773461444434,-3277.36774126,6.904e-05,2]
[408341704,1773461444444,-3530.57420239,6.904e-05,2]
[408341705,1773461444454,-5820.60510847,6.904e-05,2]
[408341706,1773461444464,-159.39816975,6.904e-05,2]
[408341707,1773461444474,-531.91459573,6.924e-05,2]
[408341708,1773461444483,-531.91459573,6.924e-05,2]
[408341709,1773461444493,-531.91459573,6.924e-05,2]
[408341710,1773461444502,-531.91459573,6.924e-05,2]
[408341711,1773461444512,-531.91459573,6.924e-05,2]
[408341712,1773461444523,-531.91459573,6.924e-05,2]
[408341713,1773461444532,-531.91459573,6.924e-05,2]
[408341714,1773461444543,-531.91459573,6.924e-05,2]
[408341715,1773461444552,-531.91459573,6.924e-05,2]
[408341716,1773461444562,-531.91459573,6.924e-05,2]
[408341717,1773461444574,-531.91459573,6.924e-05,2]
[408341718,1773461444583,-531.91459573,6.924e-05,2]
[408341719,1773461444593,-531.91459573,6.924e-05,2]
[408341720,1773461444603,-531.91459573,6.924e-05,2]
[408341721,1773461444612,-531.91459573,6.924e-05,2]
[408341722,1773461444622,-531.91459573,6.924e-05,2]
[408341723,1773461444631,-531.91459573,6.924e-05,2]
[408341724,1773461444642,-531.91459573,6.924e-05,2]
[408341725,1773461444651,-531.91459573,6.924e-05,2]
[408341726,1773461444661,-531.91459573,6.924e-05,2]
[408341727,1773461444671,-531.91459573,6.924e-05,2]
[408341728,1773461444681,-531.91459573,6.924e-05,2]
[408341729,1773461444691,-531.91459573,6.924e-05,2]
[408341730,1773461444701,-531.91459573,6.924e-05,2]
[408341731,1773461444710,-531.91459573,6.924e-05,2]
[408341732,1773461444720,-682.15753979,6.924e-05,2]
[408341733,1773461444730,-682.15753979,6.924e-05,2]
[408341734,1773461444739,-682.15753979,6.924e-05,2]
[408341735,1773461444749,-682.15753979,6.924e-05,2]
[408341736,1773461444758,-682.15753979,6.924e-05,2]
[408341737,1773461444772,-682.15753979,6.924e-05,2]
[408341738,1773461444781,-682.15753979,6.924e-05,2]
[408341739,1773461444791,-11050.54168483,6.93e-05,2]
[408341740,1773461444800,-2854.4714562,6.944e-05,2]
[408341741,1773461444811,-3116.3102897,6.944e-05,2]
[408341742,1773461444821,-500.0,6.983e-05,2]
[408341743,1773461444830,-500.0,6.983e-05,2]
[408341744,1773461444843,-18398.0,7e-05,2]
[408341745,1773461444857,-69354.16869705,7e-05,2]
[408341752,1773461446656,-5920.51060794,7e-05,2]
[408341757,1773462086334,70200.0,0.00027397,120]
[408341760,1773462148849,173.0,0.0002515,120]
[408341799,1773462631710,-430.852006,4.054e-05,10]
[408341803,1773462631766,-4569.147994,4.054e-05,10]
[408341805,1773462631775,-345.68954383,4.074e-05,2]
[408341807,1773462631785,-600.0,4.725e-05,2]
[408341810,1773462631795,-600.0,4.815e-05,2]
[408341813,1773462631804,-300.0,4.999e-05,2]
[408341816,1773462631814,-1200.0,4.999e-05,2]
[408341819,1773462631823,-2555.97627081,5e-05,2]
[408341917,1773462637725,-638.64568388,4.95e-05,2]
[408341923,1773462637781,-3148.12344806,4.95e-05,2]
[408341925,1773462637791,-8763.59837116,5e-05,2]
[408341927,1773462637801,-500.0,5.289e-05,2]
[408341929,1773462637812,-639.0,5.388e-05,2]
[408341931,1773462637822,-437.0,5.388e-05,2]
[408341933,1773462637832,-734.0,5.388e-05,2]
[408341937,1773462637842,-183.0,5.388e-05,2]
[408341940,1773462637852,-600.0,5.435e-05,2]
[408341942,1773462637861,-420.0,5.499e-05,2]
[408341944,1773462637871,-500.0,5.631e-05,2]
[408341945,1773462637880,-500.0,5.631e-05,2]
[408341947,1773462637890,-500.0,5.631e-05,2]
[408341949,1773462637899,-500.0,5.631e-05,2]
[408341951,1773462637909,-537.80824706,5.631e-05,2]
[408341954,1773462637922,-500.0,5.631e-05,2]
[408341956,1773462637931,-516.9,5.631e-05,2]
[408341958,1773462637940,-500.0,5.631e-05,2]
[408341960,1773462637949,-500.0,5.631e-05,2]
[408341962,1773462637959,-500.0,5.631e-05,2]
[408341964,1773462637969,-500.0,5.631e-05,2]
[408341966,1773462637979,-500.0,5.631e-05,2]
[408341968,1773462637988,-457.07349005,5.631e-05,2]
[408341970,1773462637998,-500.0,5.631e-05,2]
[408341972,1773462638007,-583.98825726,5.631e-05,2]
[408341974,1773462638017,-500.0,5.631e-05,2]
[408341976,1773462638027,-500.0,5.631e-05,2]
[408341978,1773462638037,-500.0,5.631e-05,2]
[408341980,1773462638046,-394.84053196,5.631e-05,2]
[408341982,1773462638055,-3003.72087346,5.632e-05,2]
[408341984,1773462638067,-18398.86958842,5.632e-05,2]
[408341986,1773462638077,-600.0,5.698e-05,2]
[408341989,1773462638087,-160.814083,5.849e-05,2]
[408341990,1773462638097,-180.0,6.049e-05,2]
[408341993,1773462638106,-407.91366172,6.074e-05,2]
[408341995,1773462638116,-594.277,6.206e-05,2]
[408341996,1773462638125,-5536.31902697,6.265e-05,2]
[408342030,1773462640316,-429.77244156,6.265e-05,2]
[408342094,1773462645251,-1878.73196632,6.265e-05,2]
[408342098,1773462645712,-4111.32773825,6.265e-05,2]
[408342099,1773462645723,-1275.38190145,6.265e-05,2]
[408342102,1773462645910,-8507.22612196,6.265e-05,2]
[408342103,1773462646072,-1091.33585625,6.265e-05,2]
[408342104,1773462646081,-600.0,6.299e-05,2]
[408342105,1773462646091,-555.04597886,6.41e-05,2]
[408342106,1773462646100,-500.0,6.41e-05,2]
[408342107,1773462646109,-500.0,6.41e-05,2]
[408342108,1773462646118,-500.0,6.41e-05,2]
[408342109,1773462646128,-526.75401475,6.41e-05,2]
[408342110,1773462646137,-500.0,6.41e-05,2]
[408342111,1773462646146,-2150.738,6.41e-05,2]
[408342112,1773462646155,-600.0,6.58e-05,2]
[408342113,1773462646164,-600.0,6.855e-05,2]
[408342114,1773462646174,-487.12100766,6.897e-05,2]
[408342118,1773462966094,151.0,0.00027397,120]
[408342119,1773462979100,151.93,6e-05,60]
[408342123,1773463261386,999.99999,0.00027397,120]
[408342124,1773463312077,1000.0,0.00027397,120]
[408342148,1773463831826,-384.768375,3.841e-05,10]
[408342205,1773463837936,-325.05437617,3.841e-05,10]
[408342210,1773463840381,-252.80417604,3.841e-05,10]
[408342215,1773463846274,-992.09,3.841e-05,10]
[408342216,1773463846332,-3045.28307279,3.841e-05,10]
[408342217,1773463846343,-334.66319681,3.899e-05,2]
[408342218,1773463846353,-500.0,4.412e-05,2]
[408342219,1773463846364,-500.0,4.755e-05,2]
[408342220,1773463846374,-500.0,5.24e-05,2]
[408342221,1773463846385,-300.0,5.619e-05,2]
[408342222,1773463846396,-300.0,5.619e-05,2]
[408342223,1773463846406,-1200.0,5.619e-05,2]
[408342224,1773463846416,-2194.0,5.62e-05,2]
[408342225,1773463846426,-394.90257223,5.899e-05,2]
[408342226,1773463846437,-212.6236918,5.947e-05,2]
[408342227,1773463846447,-2150.738,6.649e-05,2]
[408342228,1773463846457,-212.6236918,6.788e-05,2]
[408342229,1773463846468,-475.422,6.85e-05,2]
[408342230,1773463846478,-342.15944268,6.897e-05,2]
[408342237,1773464424590,-1000.0,3.535e-05,2]
[408342279,1773465032030,-1005.97488672,3.228e-05,2]
[408342281,1773465032040,-1800.0,3.328e-05,2]
[408342283,1773465032049,-339.46029429,3.413e-05,2]
[408342284,1773465032058,-137.81030979,3.78e-05,2]
[408342287,1773465032070,-71.25669268,3.78e-05,2]
[408342288,1773465032079,-160.814083,4.539e-05,2]
[408342290,1773465032088,-202.37105614,4.999e-05,2]
[408342337,1773465038259,-5000.0,3.196e-05,2]
[408342338,1773465038268,-97.62894386,4.999e-05,2]
[408342339,1773465038278,-10062.49630641,5e-05,2]
[408342340,1773465038287,-600.0,5.164e-05,2]
[408342341,1773465038296,-600.0,5.299e-05,2]
[408342342,1773465038306,-500.0,5.381e-05,2]
[408342343,1773465038315,-400.56314727,5.413e-05,2]
[408342345,1773465038325,-300.0,5.479e-05,2]
[408342347,1773465038334,-2227.845,5.515e-05,2]
[408342349,1773465038343,-437.0,5.515e-05,2]
[408342351,1773465038352,-734.0,5.515e-05,2]
[408342352,1773465038362,-183.0,5.515e-05,2]
[408342354,1773465038371,-500.0,5.632e-05,2]
[408342356,1773465038381,-2854.4714562,5.833e-05,2]
[408342358,1773465038390,-779.0775725,5.833e-05,2]
[408342360,1773465038399,-212.6236918,5.833e-05,2]
[408342361,1773465038408,-166.11214167,5.85e-05,2]
[408342362,1773465038416,-500.0,5.85e-05,2]
[408342363,1773465038426,-650.13735275,5.85e-05,2]
[408342364,1773465038435,-500.0,5.85e-05,2]
[408342365,1773465038444,-500.0,5.85e-05,2]
[408342366,1773465038454,-500.0,5.85e-05,2]
[408342367,1773465038463,-500.0,5.85e-05,2]
[408342368,1773465038472,-500.0,5.85e-05,2]
[408342369,1773465038481,-500.0,5.85e-05,2]
[408342370,1773465038491,-500.0,5.85e-05,2]
[408342371,1773465038500,-500.0,5.85e-05,2]
[408342372,1773465038511,-500.0,5.85e-05,2]
[408342373,1773465038521,-302.68434703,5.85e-05,2]
[408342374,1773465038530,-500.0,5.85e-05,2]
[408342375,1773465038540,-500.0,5.85e-05,2]
[408342376,1773465038549,-276.21418473,5.85e-05,2]
[408342377,1773465038558,-500.0,5.85e-05,2]
[408342378,1773465038568,-500.0,5.85e-05,2]
[408342379,1773465038577,-500.0,5.85e-05,2]
[408342380,1773465038587,-500.0,5.85e-05,2]
[408342381,1773465038597,-500.0,5.85e-05,2]
[408342382,1773465038606,-500.0,5.85e-05,2]
[408342383,1773465038615,-500.0,5.85e-05,2]
[408342384,1773465038626,-500.0,5.85e-05,2]
[408342385,1773465038636,-500.0,5.85e-05,2]
[408342386,1773465038646,-386.48472284,5.85e-05,2]
[408342387,1773465038655,-537.34360114,5.85e-05,2]
[408342388,1773465038665,-500.0,5.85e-05,2]
[408342389,1773465038675,-500.0,5.85e-05,2]
[408342390,1773465038684,-500.0,5.85e-05,2]
[408342391,1773465038694,-500.0,5.85e-05,2]
[408342392,1773465038703,-433.14965495,5.85e-05,2]
[408342393,1773465038713,-500.0,5.85e-05,2]
[408342394,1773465038722,-500.0,5.85e-05,2]
[408342395,1773465038732,-500.0,5.85e-05,2]
[408342396,1773465038742,-500.0,5.85e-05,2]
[408342397,1773465038751,-500.0,5.85e-05,2]
[408342398,1773465038762,-500.0,5.85e-05,2]
[408342399,1773465038771,-500.0,5.85e-05,2]
[408342400,1773465038781,-500.0,5.85e-05,2]
[408342401,1773465038790,-500.0,5.85e-05,2]
[408342402,1773465038801,-500.0,5.85e-05,2]
[408342403,1773465038810,-500.0,5.85e-05,2]
[408342404,1773465038820,-500.0,5.85e-05,2]
[408342405,1773465038829,-500.0,5.85e-05,2]
[408342406,1773465038838,-500.0,5.85e-05,2]
[408342407,1773465038848,-500.0,5.85e-05,2]
[408342408,1773465038857,-500.0,5.85e-05,2]
[408342409,1773465038866,-500.0,5.85e-05,2]
[408342410,1773465038875,-500.0,5.85e-05,2]
[408342411,1773465038884,-500.0,5.85e-05,2]
[408342412,1773465038893,-500.0,5.85e-05,2]
[408342413,1773465038903,-500.0,5.85e-05,2]
[408342414,1773465038913,-500.0,5.85e-05,2]
[408342415,1773465038922,-500.0,5.85e-05,2]
[408342416,1773465038931,-500.0,5.85e-05,2]
[408342417,1773465038940,-500.0,5.85e-05,2]
[408342418,1773465038953,-500.0,5.85e-05,2]
[408342419,1773465038963,-500.0,5.85e-05,2]
[408342420,1773465038973,-500.0,5.85e-05,2]
[408342421,1773465038983,-500.0,5.85e-05,2]
[408342422,1773465038992,-500.0,5.85e-05,2]
[408342423,1773465039001,-500.0,5.85e-05,2]
[408342424,1773465039010,-500.0,5.85e-05,2]
[408342425,1773465039020,-500.0,5.85e-05,2]
[408342426,1773465039030,-500.0,5.85e-05,2]
[408342427,1773465039040,-500.0,5.85e-05,2]
[408342428,1773465039049,-500.0,5.85e-05,2]
[408342429,1773465039059,-509.85249833,5.85e-05,2]
[408342430,1773465039068,-500.0,5.85e-05,2]
[408342431,1773465039078,-500.0,5.85e-05,2]
[408342432,1773465039087,-500.0,5.85e-05,2]
[408342433,1773465039097,-500.0,5.85e-05,2]
[408342434,1773465039106,-500.0,5.85e-05,2]
[408342435,1773465039122,-500.0,5.85e-05,2]
[408342436,1773465039131,-500.0,5.85e-05,2]
[408342437,1773465039141,-500.0,5.85e-05,2]
[408342438,1773465039150,-500.0,5.85e-05,2]
[408342439,1773465039162,-500.0,5.85e-05,2]
[408342440,1773465039171,-500.0,5.85e-05,2]
[408342441,1773465039181,-500.0,5.85e-05,2]
[408342442,1773465039191,-500.0,5.85e-05,2]
[408342443,1773465039201,-500.0,5.85e-05,2]
[408342444,1773465039210,-500.0,5.85e-05,2]
[408342445,1773465039220,-500.0,5.85e-05,2]
[408342446,1773465039229,-500.0,5.85e-05,2]
[408342447,1773465039239,-500.0,5.85e-05,2]
[408342448,1773465039251,-500.0,5.85e-05,2]
[408342449,1773465039261,-500.0,5.85e-05,2]
[408342450,1773465039270,-500.0,5.85e-05,2]
[408342451,1773465039279,-500.0,5.85e-05,2]
[408342452,1773465039288,-500.0,5.85e-05,2]
[408342453,1773465039298,-500.0,5.85e-05,2]
[408342454,1773465039308,-500.0,5.85e-05,2]
[408342455,1773465039318,-500.0,5.85e-05,2]
[408342456,1773465039328,-500.0,5.85e-05,2]
[408342457,1773465039337,-500.0,5.85e-05,2]
[408342458,1773465039347,-500.0,5.85e-05,2]
[408342459,1773465039356,-500.0,5.85e-05,2]
[408342460,1773465039366,-500.0,5.85e-05,2]
[408342461,1773465039375,-500.0,5.85e-05,2]
[408342462,1773465039385,-500.0,5.85e-05,2]
[408342463,1773465039395,-500.0,5.85e-05,2]
[408342464,1773465039404,-500.0,5.85e-05,2]
[408342465,1773465039419,-500.0,5.85e-05,2]
[408342466,1773465039432,-298.48348303,5.85e-05,2]
[408342467,1773465039445,-19364.42107274,5.854e-05,2]
[408342468,1773465039457,-600.0,6.094e-05,2]
[408342469,1773465039468,-600.0,6.212e-05,2]
[408342470,1773465039478,-500.0,6.319e-05,2]
[408342471,1773465039490,-500.0,6.396e-05,2]
[408342472,1773465039503,-779.0775725,6.577e-05,2]
[408342473,1773465039515,-600.0,6.589e-05,2]
[408342474,1773465039526,-528.907,6.649e-05,2]
[408342475,1773465039539,-185.76921473,6.649e-05,2]
[408342476,1773465039551,-1084.15031236,6.649e-05,2]
[408342639,1773465046245,-1066.58768764,6.649e-05,2]
[408342640,1773465046256,-475.07897903,6.678e-05,2]
[408342653,1773465970265,2910.0000001,0.00027397,120]
[408342680,1773466224171,3132.74,0.00027397,120]
[408342907,1773466240725,-459.34763194,4.807e-05,2]
[408342908,1773466240736,-40.65236806,4.807e-05,2]
[408342909,1773466240746,-161.71413526,4.971e-05,2]
[408342910,1773466240755,-240.0473073,4.985e-05,2]
[408343100,1773466242845,-259.9526927,4.985e-05,2]
[408343104,1773466242873,-480.0946146,5.045e-05,2]
[408343108,1773466242895,-19.9053854,5.045e-05,2]
[408343110,1773466242904,-240.0473073,5.311e-05,2]
[408343112,1773466242916,-84.61251816,5.311e-05,2]
[408343114,1773466242925,-415.38748184,5.416e-05,2]
[408343465,1773466246352,-690.78908426,5.416e-05,2]
[408343466,1773466246361,-500.0,5.509e-05,2]
[408343468,1773466246370,-734.0,5.829e-05,2]
[408343470,1773466246379,-183.0,5.829e-05,2]
[408343472,1773466246388,-437.0,5.829e-05,2]
[408343474,1773466246397,-389.5387862,5.953e-05,2]
[408343475,1773466246407,-212.623692,5.953e-05,2]
[408343477,1773466246416,-250.0,6.6e-05,2]
[408343479,1773466246425,-389.5387862,6.638e-05,2]
[408343481,1773466246434,-2150.738,6.705e-05,2]
[408343483,1773466246443,-7117.65697032,6.709e-05,2]
[408343575,1773466412382,150.0,0.00027397,120]
[408343578,1773466638555,500.0,0.00027,120]
[408343579,1773466644844,1386.02301617,3e-05,10]
[408343580,1773466646191,1000.0,0.00027,120]
[408343581,1773466653649,1500.0,0.00027,120]
[408343582,1773466654420,2200.0,3e-05,10]
[408343591,1773467113736,208.0,0.00027397,120]
[408343592,1773467129569,250.0,0.00027397,120]
[408343596,1773467242293,5000.0,0.00027397,120]
[408343629,1773467432368,-325.77,2.3e-05,2]
[408343630,1773467432378,-332.22908716,2.416e-05,2]
[408343632,1773467432387,-167.515006,2.764e-05,2]
[408343634,1773467432397,-392.03032284,4.416e-05,2]
[408343636,1773467432406,-300.0,4.999e-05,2]
[408343638,1773467432415,-610.0,4.999e-05,2]
[408343640,1773467432424,-933.61151686,5e-05,2]
[408343643,1773467432447,-8785.05057604,5e-05,2]
[408343645,1773467432456,-160.814082,5.09e-05,2]
[408343647,1773467432466,-402.36882485,5.43e-05,2]
[408343649,1773467432477,-97.63117515,5.43e-05,2]
[408343651,1773467432486,-300.0,5.479e-05,2]
[408343653,1773467432496,-420.0,5.499e-05,2]
[408343655,1773467432505,-160.814082,5.626e-05,2]
[408343657,1773467432515,-141.27198846,6.042e-05,2]
[408343731,1773467438758,-587.0,6.049e-05,2]
[408343732,1773467438768,-194.7693931,6.066e-05,2]
[408343733,1773467438778,-811.4368428,6.066e-05,2]
[408343734,1773467438787,-160.814082,6.162e-05,2]
[408343735,1773467438797,-18806.44079088,6.29e-05,2]
[408343736,1773467438807,-451.83155853,6.416e-05,2]
[408343737,1773467438816,-2150.738,6.483e-05,2]
[408343738,1773467438825,-223.0,6.654e-05,2]
[408343739,1773467438834,-423.126,6.772e-05,2]
[408343740,1773467438844,-430.01512389,6.871e-05,2]
[408343741,1773467438857,-500.0,6.871e-05,2]
[408343742,1773467438866,-500.0,6.871e-05,2]
[408343743,1773467438875,-209.60941365,6.871e-05,2]
[408343744,1773467438885,-500.0,6.871e-05,2]
[408343745,1773467438895,-214.79440611,6.871e-05,2]
[408343746,1773467438905,-500.0,6.871e-05,2]
[408343747,1773467438914,-500.0,6.871e-05,2]
[408343748,1773467438924,-253.73436012,6.871e-05,2]
[408343749,1773467438934,-500.0,6.871e-05,2]
[408343750,1773467438944,-500.0,6.871e-05,2]
[408343751,1773467438961,-500.0,6.871e-05,2]
[408343752,1773467438977,-500.0,6.871e-05,2]
[408343753,1773467438986,-500.0,6.871e-05,2]
[408343754,1773467438996,-500.0,6.871e-05,2]
[408343755,1773467439005,-500.0,6.871e-05,2]
[408343756,1773467439015,-500.0,6.871e-05,2]
[408343757,1773467439024,-500.0,6.871e-05,2]
[408343758,1773467439034,-500.0,6.871e-05,2]
[408343759,1773467439043,-500.0,6.871e-05,2]
[408343760,1773467439052,-500.0,6.871e-05,2]
[408343761,1773467439062,-500.0,6.871e-05,2]
[408343762,1773467439072,-500.0,6.871e-05,2]
[408343763,1773467439081,-500.0,6.871e-05,2]
[408343764,1773467439090,-500.0,6.871e-05,2]
[408343765,1773467439100,-500.0,6.871e-05,2]
[408343766,1773467439110,-500.0,6.871e-05,2]
[408343767,1773467439119,-500.0,6.871e-05,2]
[408343768,1773467439129,-500.0,6.871e-05,2]
[408343769,1773467439138,-500.0,6.871e-05,2]
[408343770,1773467439147,-500.0,6.871e-05,2]
[408343771,1773467439156,-500.0,6.871e-05,2]
[408343772,1773467439166,-500.0,6.871e-05,2]
[408343773,1773467439175,-500.0,6.871e-05,2]
[408343774,1773467439185,-500.0,6.871e-05,2]
[408343775,1773467439195,-500.0,6.871e-05,2]
[408343776,1773467439204,-500.0,6.871e-05,2]
[408343777,1773467439213,-500.0,6.871e-05,2]
[408343778,1773467439223,-500.0,6.871e-05,2]
[408343779,1773467439232,-500.0,6.871e-05,2]
[408343780,1773467439242,-500.0,6.871e-05,2]
[408343781,1773467439252,-500.0,6.871e-05,2]
[408343782,1773467439261,-500.0,6.871e-05,2]
[408343783,1773467439271,-500.0,6.871e-05,2]
[408343784,1773467439281,-500.0,6.871e-05,2]
[408343785,1773467439290,-500.0,6.871e-05,2]
[408343786,1773467439300,-415.97227262,6.871e-05,2]
[408343787,1773467439309,-500.0,6.871e-05,2]
[408343788,1773467439319,-500.0,6.871e-05,2]
[408343789,1773467439328,-500.0,6.871e-05,2]
[408343790,1773467439338,-500.0,6.871e-05,2]
[408343791,1773467439347,-500.0,6.871e-05,2]
[408343792,1773467439356,-500.0,6.871e-05,2]
[408343793,1773467439365,-500.0,6.871e-05,2]
[408343794,1773467439376,-500.0,6.871e-05,2]
[408343795,1773467439386,-500.0,6.871e-05,2]
[408343796,1773467439396,-500.0,6.871e-05,2]
[408343797,1773467439406,-500.0,6.871e-05,2]
[408343798,1773467439417,-350.09039626,6.871e-05,2]
[408343799,1773467439426,-500.0,6.871e-05,2]
[408343800,1773467439435,-500.0,6.871e-05,2]
[408343801,1773467439445,-500.0,6.871e-05,2]
[408343802,1773467439455,-500.0,6.871e-05,2]
[408343803,1773467439465,-500.0,6.871e-05,2]
[408343804,1773467439474,-500.0,6.871e-05,2]
[408343805,1773467439484,-500.0,6.871e-05,2]
[408343806,1773467439497,-500.0,6.871e-05,2]
[408343807,1773467439507,-529.45184913,6.872e-05,2]
[408343808,1773467439516,-151.0,6.883e-05,2]
[408343809,1773467439526,-158.342404,6.883e-05,2]
[408343810,1773467439535,-265.26359,6.883e-05,2]
[408343811,1773467439545,-2686.75929253,6.884e-05,2]
[408343812,1773467439555,-671.68982313,6.887e-05,2]
[408343813,1773467439566,-4776.4609645,6.922e-05,2]
[408343814,1773467439576,-286.91670556,6.924e-05,2]
[408343815,1773467439585,-510.07414321,6.924e-05,2]
[408343816,1773467439594,-278.27982503,6.924e-05,2]
[408343817,1773467439604,-796.99084877,6.924e-05,2]
[408343818,1773467439613,-1146.51915541,6.924e-05,2]
[408343819,1773467439623,-500.90368505,6.924e-05,2]
[408343820,1773467439636,-890.49544009,6.924e-05,2]
[408343821,1773467439645,-1391.39912513,6.924e-05,2]
[408343822,1773467439655,-2003.61474019,6.924e-05,2]
[408343823,1773467439665,-2727.14228526,6.924e-05,2]
[408343824,1773467439676,-373.16101285,6.924e-05,2]
[408343825,1773467439686,-194.7693931,6.935e-05,2]
[408343826,1773467439696,-500.0,6.983e-05,2]
[408343827,1773467439705,-218.901432,7e-05,30]
[408343828,1773467439715,-155.0,7e-05,2]
[408343829,1773467439725,-700.1908215,7e-05,2]
[408343830,1773467439734,-155.0,7e-05,2]
[408343831,1773467439743,-155.0,7e-05,2]
[408343832,1773467439753,-155.0,7e-05,2]
[408343833,1773467439762,-155.0,7e-05,2]
[408343834,1773467439772,-293.38413763,7e-05,2]
[408343835,1773467439782,-3695.45998861,7e-05,2]
[408343836,1773467439791,-430201.7311959,7e-05,2]
[408343837,1773467439808,-941.81791522,7e-05,2]
[408343838,1773467439820,-6986.18365056,7e-05,2]
[408343839,1773467439830,-158.0,7e-05,2]
[408343840,1773467439840,-3558.41977858,7.022e-05,2]